bitfinex-derivatives/quotes_BTCF0:USTF0_20241213
["timestamp","ask_amount","ask_price","bid_price","bid_amount"]
[1734124807239,0.47126237,101410.0,101400.0,0.88744959]
[1734124808235,0.47126237,101410.0,101400.0,0.82627422]
[1734124809546,0.47126237,101410.0,101400.0,0.77698422]
[1734124809732,0.53366237,101410.0,101400.0,0.77698422]
[1734124811642,0.54366597,101410.0,101400.0,0.77698422]
[1734124812746,0.54366597,101410.0,101400.0,0.83815959]
[1734124812942,0.54366597,101410.0,101400.0,0.77698422]
[1734124813143,0.54366597,101410.0,101400.0,0.83815959]
[1734124816048,0.54366597,101410.0,101400.0,0.77698422]
[1734124817752,0.54366597,101410.0,101400.0,0.77748422]
[1734124818754,0.54366597,101410.0,101400.0,0.77698422]
[1734124819149,0.57696597,101410.0,101400.0,0.77698422]
[1734124819456,1.09707572,101410.0,101400.0,0.1]
[1734124819654,1.27322689,101410.0,101400.0,0.1005]
[1734124819949,1.1264961,101410.0,101400.0,0.1005]
[1734124820152,1.11429251,101410.0,101400.0,0.1005]
[1734124820350,1.12648517,101410.0,101400.0,0.0007]
[1734124820550,1.11429251,101410.0,101400.0,0.0007]
[1734124821056,0.049297,101390.0,101380.0,0.5]
[1734124821249,0.55902661,101390.0,101380.0,0.5]
[1734124821449,0.049302,101380.0,101370.0,0.67698422]
[1734124821651,0.47127737,101380.0,101370.0,0.67698422]
[1734124821849,0.47127737,101380.0,101370.0,0.23815959]
[1734124822050,0.47127737,101380.0,101370.0,0.56117537]
[1734124822451,0.47127737,101380.0,101370.0,0.11048137]
[1734124822651,0.47127737,101380.0,101370.0,0.61048137]
[1734124823251,0.410102,101380.0,101370.0,0.61048137]
[1734124823444,0.049302,101380.0,101370.0,0.97128137]
[1734124823650,0.410099,101390.0,101380.0,0.049302]
[1734124823854,0.410099,101390.0,101380.0,0.17617737]
[1734124824056,0.410099,101390.0,101380.0,0.67617737]
[1734124824261,0.410099,101390.0,101380.0,0.17617737]
[1734124824657,0.410099,101390.0,101380.0,0.67617737]
[1734124824852,0.049299,101390.0,101380.0,0.23735274]
[1734124825057,0.049299,101390.0,101380.0,0.59815274]
[1734124825258,0.049299,101390.0,101380.0,1.27513696]
[1734124826163,0.049299,101390.0,101380.0,2.47513696]
[1734124826466,0.049299,101390.0,101380.0,2.41396159]
[1734124826765,0.049299,101390.0,101380.0,1.21396159]
[1734124826964,0.049299,101390.0,101380.0,1.27513696]
[1734124827265,0.6457479,101410.0,101390.0,0.049297]
[1734124827458,0.49784224,101410.0,101400.0,0.17164274]
[1734124827653,0.49784224,101410.0,101400.0,0.23264274]
[1734124827654,0.44855424,101410.0,101400.0,0.23264274]
[1734124827864,0.61632506,101420.0,101410.0,0.049287]
[1734124828160,0.4993194,101420.0,101410.0,0.61046237]
[1734124828665,0.4993194,101420.0,101410.0,0.11046237]
[1734124829059,0.4993194,101420.0,101410.0,0.61046237]
[1734124829458,0.41156516,101420.0,101410.0,0.11046237]
[1734124829659,0.41156516,101420.0,101410.0,0.61046237]
[1734124829858,0.41156516,101420.0,101410.0,0.72627122]
[1734124829859,0.50895601,101420.0,101410.0,0.72627122]
[1734124830067,0.50895601,101420.0,101410.0,0.28744659]
[1734124830468,0.50895601,101420.0,101410.0,0.78744659]
[1734124830865,0.50895601,101420.0,101410.0,0.28744659]
[1734124831061,0.62596167,101420.0,101410.0,0.78744659]
[1734124832571,0.50895601,101420.0,101410.0,0.61046237]
[1734124833167,0.50895601,101420.0,101410.0,0.78744659]
[1734124834670,0.50895601,101420.0,101410.0,1.98744659]
[1734124834671,0.62646167,101420.0,101410.0,1.98744659]
[1734124835071,0.50945601,101420.0,101410.0,1.98744659]
[1734124835264,0.62646167,101420.0,101410.0,1.98744659]
[1734124835466,0.14865601,101420.0,101410.0,1.98744659]
[1734124840177,0.06090177,101420.0,101410.0,1.81046237]
[1734124840764,0.14865601,101420.0,101410.0,1.98744659]
[1734124841075,0.0005,101420.0,101410.0,1.50631512]
[1734124841275,0.67333974,101440.0,101430.0,0.049277]
[1734124841276,0.6148369,101440.0,101430.0,0.049277]
[1734124841575,0.49783124,101440.0,101430.0,1.81045237]
[1734124841971,0.49783124,101440.0,101430.0,1.31045237]
[1734124842375,0.49783124,101440.0,101430.0,1.81045237]
[1734124843380,0.50752347,101440.0,101430.0,1.81045237]
[1734124844671,0.50752347,101440.0,101430.0,1.749277]
[1734124844873,0.50752347,101440.0,101430.0,1.81045237]
[1734124845167,0.41976923,101440.0,101430.0,1.81045237]
[1734124845372,0.05896923,101440.0,101430.0,1.81045237]
[1734124849080,0.14672347,101440.0,101430.0,1.81045237]
[1734124849781,0.14722347,101440.0,101430.0,1.81045237]
[1734124852082,0.14722347,101440.0,101430.0,1.9871793]
[1734124854185,0.09794647,101440.0,101430.0,1.9871793]
[1734124854482,0.0005,101440.0,101430.0,1.44487246]
[1734124854783,0.0005,101440.0,101430.0,2.1437255]
[1734124854975,0.4500335,101460.0,101450.0,0.17161874]
[1734124855370,0.4500335,101460.0,101450.0,0.70291874]
[1734124855574,0.4500335,101460.0,101450.0,0.20291874]
[1734124855975,0.4500335,101460.0,101450.0,0.64174337]
[1734124856178,0.0892335,101460.0,101450.0,1.00254337]
[1734124856381,0.00147926,101460.0,101450.0,0.50254337]
[1734124856678,0.00147926,101460.0,101450.0,1.17918673]
[1734124857072,0.00147926,101460.0,101450.0,1.2403621]
[1734124858177,0.00147926,101460.0,101450.0,1.06371874]
[1734124858685,0.09909529,101460.0,101450.0,1.2403621]
[1734124860380,0.09909529,101460.0,101450.0,2.4403621]
[1734124860682,0.01134105,101460.0,101450.0,2.26371874]
[1734124860977,0.01134105,101460.0,101450.0,2.20254337]
[1734124861572,0.09909529,101460.0,101450.0,2.37918673]
[1734124861776,0.14835829,101460.0,101450.0,2.37918673]
[1734124861980,0.57033366,101460.0,101450.0,1.95721136]
[1734124862183,0.57033366,101460.0,101450.0,0.25721136]
[1734124862379,0.57033366,101460.0,101450.0,0.080568]
[1734124862587,0.68733932,101460.0,101450.0,0.049268]
[1734124863181,0.62616395,101460.0,101450.0,0.049268]
[1734124863988,0.50915829,101460.0,101450.0,0.049268]
[1734124864486,0.50915829,101460.0,101450.0,0.64252277]
[1734124864684,0.50965829,101460.0,101450.0,0.64252277]
[1734124864882,0.50965829,101460.0,101450.0,0.14252277]
[1734124865079,0.50965829,101460.0,101450.0,0.64252277]
[1734124865686,0.50965829,101460.0,101450.0,0.67412277]
[1734124865986,0.14885829,101460.0,101450.0,0.580868]
[1734124866181,0.09959529,101460.0,101450.0,1.03492277]
[1734124866373,0.01184105,101460.0,101450.0,1.03492277]
[1734124867784,0.14885829,101460.0,101450.0,1.21156613]
[1734124870177,0.26586395,101460.0,101450.0,1.21156613]
[1734124871578,0.17810971,101460.0,101450.0,1.21156613]
[1734124872287,0.17810971,101460.0,101450.0,1.11831136]
[1734124872488,0.50990732,101460.0,101450.0,0.75751136]
[1734124872710,0.50990732,101460.0,101450.0,0.580868]
[1734124872711,0.62691298,101460.0,101450.0,0.580868]
[1734124873389,0.53890971,101460.0,101450.0,0.580868]
[1734124874083,0.68516679,101460.0,101450.0,0.580868]
[1734124877698,0.68516679,101460.0,101450.0,0.67412277]
[1734124877895,0.68516679,101460.0,101450.0,0.580868]
[1734124880203,0.68555724,101460.0,101450.0,0.580868]
[1734124880496,0.56816113,101460.0,101450.0,0.580868]
[1734124880698,0.68555219,101460.0,101450.0,0.580868]
[1734124881189,0.56816113,101460.0,101450.0,0.75751136]
[1734124882793,0.56766113,101460.0,101450.0,0.75751136]
[1734124883099,0.56766113,101460.0,101450.0,0.94396115]
[1734124883394,0.67314998,101460.0,101450.0,0.17664336]
[1734124883588,0.73454407,101460.0,101440.0,0.94346115]
[1734124883784,0.58119556,101450.0,101440.0,0.91236115]
[1734124883990,0.87004604,101450.0,101440.0,0.67664336]
[1734124884193,0.87004604,101450.0,101440.0,0.17664336]
[1734124884395,0.75520802,101450.0,101440.0,0.17664336]
[1734124884697,0.75520802,101450.0,101430.0,1.03845592]
[1734124884698,0.049272,101440.0,101430.0,1.03845592]
[1734124884900,0.67437081,101440.0,101430.0,0.94520115]
[1734124885291,0.67437081,101440.0,101430.0,1.00641675]
[1734124886596,0.67437081,101440.0,101430.0,0.77069896]
[1734124888507,0.61552433,101440.0,101430.0,0.5940556]
[1734124889000,0.61552492,101440.0,101430.0,0.77069896]
[1734124889595,0.61552492,101440.0,101430.0,0.5940556]
[1734124890804,0.61552492,101440.0,101430.0,0.6433326]
[1734124893300,0.62518955,101440.0,101430.0,0.5940556]
[1734124894098,0.53720277,101440.0,101430.0,0.77069896]
[1734124894807,0.53720277,101440.0,101430.0,0.77119896]
[1734124901110,0.68637158,101440.0,101430.0,0.03334]
[1734124901611,0.74525104,101440.0,101430.0,0.03334]
[1734124903410,0.75746388,101440.0,101430.0,0.03334]
[1734124904014,0.74525104,101440.0,101430.0,0.0945556]
[1734124904316,0.68403544,101440.0,101430.0,0.0945556]
[1734124905316,0.68403544,101440.0,101430.0,0.03334]
[1734124907813,0.68403544,101440.0,101430.0,0.12662757]
[1734124908117,0.68403544,101440.0,101430.0,0.62662757]
[1734124908313,0.68403544,101440.0,101430.0,0.12662757]
[1734124908508,0.68403544,101440.0,101430.0,0.30327093]
[1734124908711,0.68403544,101440.0,101430.0,0.80327093]
[1734124909018,0.68403544,101440.0,101430.0,0.30327093]
[1734124909508,0.68403544,101440.0,101430.0,0.80327093]
[1734124909908,0.68403544,101440.0,101430.0,0.30327093]
[1734124910108,0.68403544,101440.0,101430.0,0.80327093]
[1734124910418,0.68403544,101440.0,101430.0,0.30327093]
[1734124910712,0.68403544,101440.0,101430.0,0.80327093]
[1734124911119,0.68403544,101440.0,101430.0,0.20998336]
[1734124911512,0.57880281,101440.0,101430.0,0.70998336]
[1734124911713,0.57880281,101440.0,101430.0,0.20948336]
[1734124912105,0.57880281,101440.0,101430.0,0.70948336]
[1734124912610,0.75495398,101440.0,101430.0,0.44520115]
[1734124912809,0.75495398,101440.0,101430.0,0.94520115]
[1734124914621,0.74272047,101440.0,101430.0,0.94520115]
[1734124914920,0.75496783,101440.0,101430.0,0.94520115]
[1734124918523,0.75496436,101440.0,101430.0,0.94520115]
[1734124919723,0.75496436,101440.0,101430.0,0.99447815]
[1734124920710,0.74272047,101440.0,101430.0,0.99447815]
[1734124920920,0.75496256,101440.0,101430.0,0.99447815]
[1734124921723,0.75496256,101440.0,101430.0,0.94520115]
[1734124922219,0.67209896,101440.0,101430.0,0.73575779]
[1734124922418,0.65985687,101440.0,101430.0,0.23575779]
[1734124922616,0.69295687,101440.0,101430.0,0.23575779]
[1734124925328,0.72213,101440.0,101430.0,0.23575779]
[1734124925530,0.89828117,101440.0,101430.0,0.23575779]
[1734124927313,0.89828117,101440.0,101430.0,0.41309528]
[1734124927520,0.91052326,101440.0,101430.0,0.41309528]
[1734124928721,0.91052326,101440.0,101430.0,0.23575779]
[1734124929616,0.91052549,101440.0,101430.0,0.23575779]
[1734124931321,0.91052549,101440.0,101430.0,0.4131083]
[1734124932626,0.84925514,101440.0,101430.0,0.4131083]
[1734124932827,0.70242247,101440.0,101430.0,0.4131083]
[1734124939440,0.70242702,101440.0,101430.0,0.4131083]
[1734124942033,0.60809667,101440.0,101430.0,0.4131083]
[1734124942225,0.18890004,101450.0,101430.0,1.78557744]
[1734124942425,0.19678085,101450.0,101440.0,0.89087917]
[1734124942638,0.19678085,101450.0,101440.0,1.57586291]
[1734124942639,0.31439099,101450.0,101440.0,1.57586291]
[1734124942830,0.31389099,101450.0,101440.0,2.05005166]
[1734124943031,0.31389099,101450.0,101440.0,1.98882131]
[1734124943228,0.25499114,101450.0,101440.0,1.90478244]
[1734124943532,0.25498947,101450.0,101440.0,1.37910399]
[1734124943829,0.67751982,101450.0,101440.0,1.31787364]
[1734124944037,0.67751982,101450.0,101440.0,0.44382913]
[1734124944038,0.49365684,101450.0,101440.0,0.44382913]
[1734124944235,0.49365684,101450.0,101440.0,0.41342913]
[1734124944433,0.66980801,101450.0,101440.0,0.17718967]
[1734124944630,0.70200801,101450.0,101440.0,0.17718967]
[1734124944832,0.70150801,101450.0,101440.0,0.17718967]
[1734124945728,0.68925711,101450.0,101440.0,0.17718967]
[1734124945932,0.70199141,101450.0,101440.0,0.17718967]
[1734124946333,0.049272,101440.0,101430.0,1.00479948]
[1734124946534,0.58874614,101440.0,101430.0,0.94356913]
[1734124946730,0.65968782,101440.0,101430.0,0.67772967]
[1734124946926,0.65968782,101440.0,101430.0,0.17772967]
[1734124947636,0.48353665,101440.0,101430.0,0.41396913]
[1734124948949,0.48353665,101440.0,101430.0,0.47519948]
[1734124949237,0.47130235,101440.0,101430.0,0.47519948]
[1734124949447,0.47130235,101440.0,101430.0,0.41396913]
[1734124949448,0.48353665,101440.0,101430.0,0.41396913]
[1734124950633,0.47130235,101440.0,101430.0,0.41396913]
[1734124957349,0.5325327,101440.0,101430.0,0.41396913]
[1734124957547,0.73948387,101440.0,101430.0,0.00054]
[1734124957849,0.79584462,101440.0,101420.0,0.17721733]
[1734124958046,0.72176892,101430.0,101420.0,0.17721733]
[1734124958250,0.69245717,101430.0,101420.0,0.17721733]
[1734124958853,0.69245717,101430.0,101420.0,0.17771733]
[1734124959345,0.69245717,101430.0,101420.0,0.00052766]
[1734124959549,0.69242951,101430.0,101420.0,0.00052766]
[1734124959741,0.69242951,101430.0,101420.0,2.766e-05]
[1734124960248,0.51640407,101430.0,101420.0,2.766e-05]
[1734124960748,0.51640407,101430.0,101420.0,0.00052766]
[1734124961848,0.51640407,101430.0,101420.0,2.766e-05]
[1734124962048,0.51639511,101430.0,101420.0,2.766e-05]
[1734124962866,0.51639511,101430.0,101420.0,0.00052766]
[1734124963764,0.51639511,101430.0,101420.0,2.766e-05]
[1734124964362,0.633627,101430.0,101420.0,2.766e-05]
[1734124964767,0.633627,101430.0,101420.0,0.00052766]
[1734124965167,0.63362323,101430.0,101420.0,0.00052766]
[1734124965761,0.63362323,101430.0,101420.0,2.766e-05]
[1734124966563,0.64353446,101430.0,101420.0,2.766e-05]
[1734124966763,0.64353446,101430.0,101420.0,0.00052766]
[1734124967767,0.64353446,101430.0,101420.0,2.766e-05]
[1734124968167,0.63132281,101430.0,101420.0,2.766e-05]
[1734124968869,0.63132281,101430.0,101420.0,0.00052766]
[1734124969968,0.049282,101420.0,101410.0,0.67718967]
[1734124970169,0.049292,101400.0,101390.0,0.97650836]
[1734124970465,0.049292,101400.0,101390.0,0.47650836]
[1734124970466,0.55918971,101400.0,101390.0,0.47650836]
[1734124970668,0.55918971,101400.0,101390.0,0.30149925]
[1734124970868,0.67634619,101400.0,101390.0,0.30149925]
[1734124971070,0.67634619,101400.0,101390.0,0.12430958]
[1734124972066,0.67634619,101400.0,101390.0,0.06307923]
[1734124975463,0.73757654,101400.0,101390.0,0.0616]
[1734124975664,1.09837654,101400.0,101380.0,0.0319]
[1734124975874,0.49551036,101390.0,101380.0,0.0319]
[1734124976062,0.049302,101380.0,101370.0,1.03676597]
[1734124976262,0.410102,101380.0,101370.0,0.62333684]
[1734124977278,0.410102,101380.0,101370.0,0.56210649]
[1734124977468,0.410102,101380.0,101370.0,0.62333684]
[1734124979374,0.47133235,101380.0,101370.0,0.62333684]
[1734124979679,0.5325627,101380.0,101370.0,0.50041]
[1734124979973,0.5325627,101380.0,101370.0,0.00041]
[1734124980177,0.62043006,101380.0,101370.0,0.00041]
[1734124980574,0.55919971,101380.0,101360.0,0.56123035]
[1734124980779,0.43448963,101370.0,101360.0,0.06123035]
[1734124980973,0.410106,101370.0,101360.0,0.56123035]
[1734124981370,0.049306,101370.0,101360.0,0.1224607]
[1734124981576,0.049306,101370.0,101360.0,0.1546607]
[1734124981780,0.049306,101370.0,101360.0,0.59343035]
[1734124982084,0.049306,101370.0,101360.0,0.1546607]
[1734124982388,0.049306,101370.0,101360.0,1.0647717]
[1734124982679,0.049306,101370.0,101360.0,0.5647717]
[1734124983180,0.049306,101370.0,101360.0,1.0647717]
[1734124984585,0.049306,101370.0,101360.0,1.00354135]
[1734124984769,0.049306,101370.0,101360.0,1.00404135]
[1734124985174,0.049306,101370.0,101360.0,0.0005]
[1734124985175,0.47133635,101370.0,101360.0,0.0005]
[1734124985583,0.50433635,101370.0,101360.0,0.0005]
[1734124986673,0.65343406,101370.0,101360.0,0.0005]
[1734124986972,0.62290371,101370.0,101360.0,0.0005]
[1734124987872,0.74006019,101370.0,101360.0,0.0005]
[1734124988072,0.62290371,101370.0,101360.0,0.0005]
[1734124988284,0.53503635,101370.0,101360.0,0.0005]
[1734124991174,0.443106,101370.0,101360.0,0.06173035]
[1734124991374,0.50433635,101370.0,101360.0,0.0005]
[1734124991578,0.50433635,101370.0,101360.0,0.5308]
[1734124991882,0.50433635,101370.0,101360.0,1.7308]
[1734124993378,0.50433635,101370.0,101360.0,0.0308]
[1734124993578,0.59220371,101370.0,101360.0,0.0308]
[1734124993778,0.59220371,101370.0,101360.0,0.0005]
[1734124994680,0.62250371,101370.0,101360.0,0.0005]
[1734124994881,0.68373406,101370.0,101360.0,0.0005]
[1734124995079,0.62250371,101370.0,101360.0,0.0005]
[1734124995689,0.68373406,101370.0,101360.0,0.0005]
[1734124996480,0.62250371,101370.0,101360.0,0.0005]
[1734124997190,0.75180514,101370.0,101360.0,0.0005]
[1734124998185,0.65179283,101370.0,101360.0,0.0005]
[1734124999186,0.66395369,101370.0,101360.0,0.0005]
[1734124999379,0.81025159,101370.0,101360.0,0.0005]
[1734125001088,0.69309511,101370.0,101360.0,0.0005]
[1734125002189,0.6931139,101370.0,101360.0,0.0005]
[1734125003291,0.049311,101360.0,101350.0,1.70145438]
[1734125003484,0.67601825,101360.0,101350.0,1.70145438]
[1734125004481,0.67601825,101360.0,101350.0,1.76268473]
[1734125004682,0.31521825,101360.0,101350.0,1.76268473]
[1734125004895,0.67601825,101360.0,101350.0,1.76318473]
[1734125005390,0.68593733,101360.0,101350.0,1.76318473]
[1734125005786,0.68593733,101360.0,101350.0,1.70195438]
[1734125005987,0.68593733,101360.0,101350.0,1.70145438]
[1734125006184,0.68593733,101360.0,101350.0,1.87864405]
[1734125006886,0.59821866,101360.0,101350.0,1.70195438]
[1734125007089,0.75669621,101360.0,101350.0,1.70195438]
[1734125007498,0.74451656,101360.0,101350.0,1.70195438]
[1734125007889,0.75669621,101360.0,101350.0,1.70145438]
[1734125008283,0.75669621,101360.0,101350.0,1.87864405]
[1734125008687,0.74451656,101360.0,101350.0,1.87864405]
[1734125008889,0.74451656,101360.0,101350.0,1.87914405]
[1734125009084,0.38371656,101360.0,101350.0,1.87914405]
[1734125009289,0.75669621,101360.0,101350.0,1.87914405]
[1734125009896,0.39589621,101360.0,101350.0,1.87864405]
[1734125010407,0.81792656,101360.0,101350.0,1.87864405]
[1734125010902,0.81792656,101360.0,101350.0,1.87914405]
[1734125011192,0.81792656,101360.0,101350.0,0.67914405]
[1734125011399,0.81792656,101360.0,101350.0,0.67768967]
[1734125011794,0.75669621,101360.0,101350.0,0.67768967]
[1734125012091,0.75669621,101360.0,101350.0,0.67718967]
[1734125012292,0.63973798,101360.0,101350.0,0.67718967]
[1734125012494,0.27893798,101360.0,101350.0,0.67718967]
[1734125012689,0.63973798,101360.0,101350.0,0.67718967]
[1734125013002,0.63973798,101360.0,101350.0,0.73892002]
[1734125013195,0.70096833,101360.0,101350.0,0.91392913]
[1734125013396,0.66804442,101360.0,101350.0,0.17768967]
[1734125013599,0.71709512,101360.0,101350.0,0.0005]
[1734125013796,0.71709512,101360.0,101350.0,0.17768967]
[1734125013993,0.87586715,101360.0,101350.0,0.17718967]
[1734125014194,0.75482755,101360.0,101350.0,0.23842002]
[1734125014498,0.66949905,101360.0,101350.0,0.67718967]
[1734125014694,0.66949905,101360.0,101350.0,0.91342913]
[1734125014895,0.81622141,101360.0,101350.0,0.41392913]
[1734125015199,0.81622141,101360.0,101350.0,0.9141811]
[1734125015396,0.45542141,101360.0,101350.0,0.4141811]
[1734125015699,0.27939597,101360.0,101350.0,0.78605546]
[1734125016203,0.27939597,101360.0,101350.0,1.31563658]
[1734125017602,0.26718279,101360.0,101350.0,1.31563658]
[1734125019400,0.39682398,101360.0,101350.0,2.51563658]
[1734125020805,0.26718279,101360.0,101350.0,2.51563658]
[1734125021104,0.38460922,101360.0,101350.0,2.51563658]
[1734125021310,0.26718279,101360.0,101350.0,2.51563658]
[1734125021995,0.68921314,101360.0,101350.0,0.73673946]
[1734125022195,0.68921314,101360.0,101350.0,0.91419737]
[1734125022196,0.70144358,101360.0,101350.0,0.91419737]
[1734125022400,0.87746902,101360.0,101350.0,0.91420164]
[1734125023001,0.89603858,101360.0,101350.0,0.91420164]
[1734125023299,0.90827047,101360.0,101350.0,0.91420164]
[1734125023899,0.90832096,101360.0,101350.0,0.91420164]
[1734125025002,0.90832096,101360.0,101350.0,0.91370164]
[1734125026198,0.89608907,101360.0,101350.0,0.41370164]
[1734125026402,0.90828269,101360.0,101350.0,0.17746218]
[1734125026602,0.76154564,101360.0,101350.0,0.17746218]
[1734125026897,0.90828195,101360.0,101350.0,0.17746218]
[1734125027101,0.76154564,101360.0,101350.0,0.17746218]
[1734125027309,0.90826982,101360.0,101350.0,0.17746218]
[1734125028609,0.90826982,101360.0,101350.0,0.41370164]
[1734125028908,0.73224438,101360.0,101350.0,0.41370164]
[1734125029500,0.90826982,101360.0,101350.0,0.17746218]
[1734125030306,0.78580912,101360.0,101350.0,0.17746218]
[1734125030502,0.90826982,101360.0,101350.0,0.17746218]
[1734125030906,0.90826982,101360.0,101350.0,0.67746218]
[1734125031309,0.78580912,101360.0,101350.0,0.17746218]
[1734125031508,0.90826982,101360.0,101350.0,0.67746218]
[1734125031914,0.90826982,101360.0,101350.0,0.17746218]
[1734125032307,0.90826982,101360.0,101350.0,0.91370164]
[1734125032308,0.73224438,101360.0,101350.0,0.91370164]
[1734125033216,0.90826982,101360.0,101350.0,0.17746218]
[1734125034014,0.90826982,101360.0,101340.0,1.61420164]
[1734125034015,0.049316,101350.0,101340.0,1.61420164]
[1734125034200,0.76718718,101350.0,101340.0,1.61420164]
[1734125034404,0.76718718,101350.0,101340.0,1.43673946]
[1734125034814,0.76718718,101350.0,101340.0,0.23673946]
[1734125035014,0.76718718,101350.0,101340.0,0.41360598]
[1734125035206,0.82841753,101350.0,101340.0,0.41360598]
[1734125035399,0.82841753,101350.0,101340.0,0.41359655]
[1734125035400,0.69236512,101350.0,101340.0,0.41359655]
[1734125035602,0.74136605,101350.0,101340.0,0.41359655]
[1734125035904,0.74136605,101350.0,101340.0,0.17785709]
[1734125036104,0.75359547,101350.0,101340.0,0.17785709]
[1734125036802,0.92962091,101350.0,101340.0,0.17785709]
[1734125036998,0.92962091,101350.0,101340.0,0.17735709]
[1734125037405,0.92962091,101350.0,101330.0,1.03153816]
[1734125037406,0.049321,101340.0,101330.0,0.91359655]
[1734125037611,0.73782355,101340.0,101330.0,0.91359655]
[1734125038209,0.73782355,101340.0,101330.0,0.9748269]
[1734125038210,0.6765932,101340.0,101330.0,0.9748269]
[1734125038407,0.6765932,101340.0,101330.0,0.91359655]
[1734125041525,0.6765932,101340.0,101330.0,2.11359655]
[1734125042319,0.64986276,101340.0,101330.0,2.11346168]
[1734125042618,0.70926839,101340.0,101330.0,2.11346168]
[1734125043009,0.61533804,101340.0,101330.0,2.11346168]
[1734125043215,0.31576839,101340.0,101330.0,2.11346168]
[1734125043418,0.32578383,101340.0,101330.0,2.11346168]
[1734125044714,0.32578383,101340.0,101330.0,2.17469203]
[1734125044923,0.26455348,101340.0,101330.0,2.22451803]
[1734125045124,0.14727242,101340.0,101330.0,2.22451803]
[1734125045621,0.14727242,101340.0,101330.0,2.58525482]
[1734125046021,0.14727242,101340.0,101330.0,2.40809581]
[1734125046217,0.16253703,101340.0,101330.0,2.40809581]
[1734125047024,0.16253703,101340.0,101330.0,2.93552105]
[1734125047223,0.16253703,101340.0,101330.0,2.69869534]
[1734125048619,0.15252159,101340.0,101330.0,2.69869534]
[1734125048824,0.13725698,101340.0,101330.0,2.69869534]
[1734125049123,0.01526461,101340.0,101330.0,2.69869534]
[1734125049718,0.01522461,101340.0,101330.0,2.69869534]
[1734125049917,0.01522461,101340.0,101330.0,2.69696259]
[1734125051225,0.01522461,101340.0,101330.0,2.99696259]
[1734125051525,0.01522461,101340.0,101330.0,3.35096046]
[1734125051724,0.26453565,101350.0,101340.0,0.049321]
[1734125051926,0.26453565,101350.0,101340.0,0.41190069]
[1734125052122,0.26453565,101350.0,101340.0,0.94220069]
[1734125053716,0.325766,101350.0,101340.0,0.94220069]
[1734125053920,0.26453565,101350.0,101340.0,0.94220069]
[1734125055427,0.17659967,101350.0,101340.0,0.94220069]
[1734125056026,0.26458713,101350.0,101340.0,0.94220069]
[1734125057323,0.32581748,101350.0,101340.0,0.94220069]
[1734125057524,0.32581748,101350.0,101340.0,0.73634934]
[1734125057525,0.68661748,101350.0,101340.0,0.73634934]
[1734125057717,0.69053831,101350.0,101340.0,0.17729028]
[1734125057918,0.87928434,101350.0,101340.0,0.17729028]
[1734125058924,0.7032589,101350.0,101340.0,0.17729028]
[1734125059324,0.70324963,101350.0,101340.0,0.17729028]
[1734125060031,0.70324962,101350.0,101340.0,0.17729028]
[1734125060936,0.87927506,101350.0,101340.0,0.17729028]
[1734125062635,0.87927578,101350.0,101340.0,0.17729028]
[1734125065427,0.70325034,101350.0,101340.0,0.17729028]
[1734125065626,0.70325057,101350.0,101340.0,0.17729028]
[1734125065827,0.69103831,101350.0,101340.0,0.17729028]
[1734125066028,0.70325056,101350.0,101340.0,0.17729028]
[1734125068833,0.69103831,101350.0,101340.0,0.17729028]
[1734125069135,0.69103831,101350.0,101340.0,0.41363962]
[1734125069732,0.69103831,101350.0,101340.0,1.61363962]
[1734125071433,0.70325191,101350.0,101340.0,1.37729028]
[1734125071631,0.70325191,101350.0,101340.0,0.17729028]
[1734125071836,0.71050403,101350.0,101340.0,0.17729028]
[1734125072135,0.72271849,101350.0,101340.0,0.17729028]
[1734125072847,0.64202242,101350.0,101340.0,0.73852063]
[1734125073142,0.26773831,101350.0,101340.0,1.00726997]
[1734125073341,0.39723127,101350.0,101340.0,1.00726997]
[1734125073543,0.38501681,101350.0,101340.0,1.05659097]
[1734125074037,0.32378646,101350.0,101340.0,1.05659097]
[1734125075044,0.32328646,101350.0,101340.0,1.05659097]
[1734125076844,0.38451681,101350.0,101340.0,0.99536062]
[1734125077940,0.38451681,101350.0,101340.0,0.91363962]
[1734125078131,0.69063831,101350.0,101340.0,0.17738874]
[1734125078338,0.70285277,101350.0,101340.0,0.17738874]
[1734125078532,0.87887821,101350.0,101340.0,0.17738874]
[1734125080843,0.87888168,101350.0,101340.0,0.17738874]
[1734125081348,0.86666375,101350.0,101340.0,0.17738874]
[1734125081544,0.86666375,101350.0,101340.0,0.41373808]
[1734125081741,0.69063831,101350.0,101340.0,0.41373808]
[1734125082647,0.70285727,101350.0,101340.0,0.41373808]
[1734125083549,0.64025727,101350.0,101340.0,0.91373808]
[1734125083846,0.64025727,101350.0,101340.0,0.41373808]
[1734125084149,0.64025832,101350.0,101340.0,2.11373808]
[1734125085139,0.64025832,101350.0,101340.0,0.91373808]
[1734125085742,0.64025832,101350.0,101340.0,2.11373808]
[1734125086536,0.64025832,101350.0,101340.0,2.16305908]
[1734125086856,0.21822797,101350.0,101340.0,2.22428943]
[1734125087142,0.21822797,101350.0,101340.0,2.25678943]
[1734125087552,0.21822797,101350.0,101340.0,2.44020069]
[1734125087749,0.20600796,101350.0,101340.0,2.44020069]
[1734125089650,0.20600796,101350.0,101340.0,2.96397711]
[1734125089651,0.32334219,101350.0,101340.0,2.96397711]
[1734125095543,0.32334219,101350.0,101340.0,2.93147711]
[1734125095947,0.38457254,101350.0,101340.0,2.93147711]
[1734125096148,0.38457254,101350.0,101340.0,2.93165185]
[1734125096746,0.38457254,101350.0,101340.0,2.8704215]
[1734125097853,0.38457254,101350.0,101340.0,2.34647034]
[1734125099146,0.32334219,101350.0,101340.0,2.64176904]
[1734125099341,0.32334219,101350.0,101340.0,2.86605122]
[1734125099542,0.17665284,101350.0,101340.0,2.86605122]
[1734125100454,0.32334219,101350.0,101340.0,2.86605122]
[1734125101568,0.75456866,101350.0,101340.0,0.41375381]
[1734125101750,0.82661699,101350.0,101340.0,0.17740895]
[1734125102543,0.049321,101340.0,101330.0,0.41375829]
[1734125102750,0.67906149,101340.0,101330.0,0.41375829]
[1734125103053,0.67906149,101340.0,101330.0,0.41425829]
[1734125103447,0.7962289,101340.0,101330.0,0.41425829]
[1734125104053,0.7962289,101340.0,101330.0,0.41375829]
[1734125105056,0.7962289,101340.0,101330.0,0.41425829]
[1734125106059,0.7962289,101340.0,101330.0,0.41375829]
[1734125106958,0.7962289,101340.0,101330.0,0.41425829]
[1734125107962,0.7962289,101340.0,101330.0,0.41375829]
[1734125108160,0.7962289,101340.0,101330.0,0.17740895]
[1734125108963,0.7962289,101340.0,101330.0,0.17790895]
[1734125109564,0.67906149,101340.0,101330.0,0.17790895]
[1734125109764,0.67371395,101340.0,101330.0,0.17790895]
[1734125109964,0.79617465,101340.0,101330.0,0.17740895]
[1734125111164,0.67906149,101340.0,101330.0,0.17790895]
[1734125111765,0.67906149,101340.0,101330.0,0.0005]
[1734125111766,0.79620054,101340.0,101330.0,0.0005]
[1734125111965,0.79620054,101340.0,101330.0,0.17740895]
[1734125112162,0.79620054,101340.0,101320.0,0.91375829]
[1734125112363,0.22297196,101330.0,101320.0,0.91375829]
[1734125112552,0.19840976,101330.0,101320.0,0.91375829]